fUSD/lending_fUSD_20260202
["ID","MTS","AMOUNT","RATE_DAILY","PERIOD"]
[404328618,1770063042321,-1235.79,0.00013698,2]
[404328619,1770063042332,-1235.79,0.00013698,2]
[404328620,1770063042342,-1235.79,0.00013698,2]
[404328621,1770063042352,-1235.79,0.00013698,2]
[404328622,1770063042362,-646.39442601,0.00013698,2]
[404328623,1770063042371,-639.93,0.00013698,2]
[404328624,1770063042381,-639.93,0.00013698,2]
[404328625,1770063042390,-639.93,0.00013698,2]
[404328626,1770063042400,-639.93,0.00013698,2]
[404328627,1770063042409,-639.93,0.00013698,2]
[404328628,1770063042418,-639.93,0.00013698,2]
[404328629,1770063042428,-639.93,0.00013698,2]
[404328630,1770063042437,-639.93,0.00013698,2]
[404328631,1770063042446,-639.93,0.00013698,2]
[404328632,1770063042455,-639.93,0.00013698,2]
[404328633,1770063042464,-639.93,0.00013698,2]
[404328634,1770063042473,-639.93,0.00013698,2]
[404328635,1770063042482,-639.93,0.00013698,2]
[404328636,1770063042491,-639.93,0.00013698,2]
[404328637,1770063042504,-639.93,0.00013698,2]
[404328638,1770063042522,-639.93,0.00013698,2]
[404328639,1770063042532,-639.93,0.00013698,2]
[404328640,1770063042542,-639.93,0.00013698,2]
[404328641,1770063042551,-1083.53,0.00013698,2]
[404328642,1770063042560,-1083.53,0.00013698,2]
[404328643,1770063042570,-1083.53,0.00013698,2]
[404328644,1770063042580,-1083.53,0.00013698,2]
[404328645,1770063042589,-1083.53,0.00013698,2]
[404328646,1770063042599,-1083.53,0.00013698,2]
[404328647,1770063042608,-1083.53,0.00013698,2]
[404328648,1770063042617,-1083.53,0.00013698,2]
[404328649,1770063042625,-1083.53,0.00013698,2]
[404328650,1770063042635,-1083.53,0.00013698,2]
[404328651,1770063042645,-1083.53,0.00013698,2]
[404328652,1770063042654,-1083.53,0.00013698,2]
[404328653,1770063042663,-1083.53,0.00013698,2]
[404328654,1770063042672,-1083.53,0.00013698,2]
[404328655,1770063042682,-1083.53,0.00013698,2]
[404328656,1770063042691,-1083.53,0.00013698,2]
[404328657,1770063042700,-1083.53,0.00013698,2]
[404328658,1770063042710,-1083.53,0.00013698,2]
[404328659,1770063042719,-596.97,0.00013698,2]
[404328660,1770063042729,-535.53919898,0.00013698,2]
[404328661,1770063042742,-596.97,0.00013698,2]
[404328662,1770063042757,-596.97,0.00013698,2]
[404328663,1770063042770,-596.97,0.00013698,2]
[404328664,1770063042783,-596.97,0.00013698,2]
[404328665,1770063042794,-596.97,0.00013698,2]
[404328666,1770063042805,-596.97,0.00013698,2]
[404328667,1770063042816,-596.97,0.00013698,2]
[404328668,1770063042828,-596.97,0.00013698,2]
[404328669,1770063042840,-596.97,0.00013698,2]
[404328670,1770063042852,-596.97,0.00013698,2]
[404328671,1770063042864,-596.97,0.00013698,2]
[404328672,1770063042886,-596.97,0.00013698,2]
[404328673,1770063042906,-596.97,0.00013698,2]
[404328674,1770063042920,-596.97,0.00013698,2]
[404328675,1770063042936,-596.97,0.00013698,2]
[404328676,1770063042950,-596.97,0.00013698,2]
[404328677,1770063042961,-596.97,0.00013698,2]
[404328678,1770063042973,-500.0,0.00013698,2]
[404328679,1770063042989,-500.0,0.00013698,2]
[404328680,1770063043003,-500.0,0.00013698,2]
[404328681,1770063043019,-500.0,0.00013698,2]
[404328682,1770063043032,-500.0,0.00013698,2]
[404328683,1770063043045,-500.0,0.00013698,2]
[404328684,1770063043058,-500.0,0.00013698,2]
[404328685,1770063043071,-500.0,0.00013698,2]
[404328686,1770063043084,-500.0,0.00013698,2]
[404328687,1770063043097,-500.0,0.00013698,2]
[404328688,1770063043110,-500.0,0.00013698,2]
[404328689,1770063043124,-500.0,0.00013698,2]
[404328690,1770063043138,-500.0,0.00013698,2]
[404328691,1770063043150,-500.0,0.00013698,2]
[404328692,1770063043163,-500.0,0.00013698,2]
[404328693,1770063043176,-500.0,0.00013698,2]
[404328694,1770063043187,-500.0,0.00013698,2]
[404328695,1770063043200,-500.0,0.00013698,2]
[404328696,1770063043212,-500.0,0.00013698,2]
[404328697,1770063043229,-500.0,0.00013698,2]
[404328698,1770063043242,-500.0,0.00013698,2]
[404328699,1770063043256,-500.0,0.00013698,2]
[404328700,1770063043269,-500.0,0.00013698,2]
[404328701,1770063043281,-500.0,0.00013698,2]
[404328702,1770063043293,-334.5135457,0.00013698,2]
[404328703,1770063043303,-516.48312948,0.00013698,2]
[404328705,1770063043315,-200.0,0.00013699,2]
[404328707,1770063043326,-2800.26,0.00013699,2]
[404328712,1770063043341,-195.16,0.00013699,2]
[404328714,1770063043355,-500.0,0.00013699,2]
[404328716,1770063043366,-4118.55,0.000137,2]
[404328717,1770063043377,-4118.55,0.000137,2]
[404328719,1770063043387,-4118.55,0.000137,2]
[404328721,1770063043399,-4118.55,0.000137,2]
[404328722,1770063043411,-4118.55,0.000137,2]
[404328724,1770063043425,-200.0,0.00013806,2]
[404328725,1770063043438,-151.0,0.00013858,2]
[404328726,1770063043449,-222.88299738,0.00013873,2]
[404328727,1770063043460,-500.0,0.00013873,2]
[404328728,1770063043471,-500.0,0.000139,2]
[404328729,1770063043482,-823.0,0.00013934,2]
[404328730,1770063043494,-200.0,0.00013944,2]
[404328731,1770063043506,-3292.0,0.00013954,2]
[404328732,1770063043517,-736.0,0.00013971,2]
[404328733,1770063043529,-500.0,0.00013973,2]
[404328734,1770063043540,-500.0,0.00013973,2]
[404328735,1770063043551,-500.0,0.00013973,2]
[404328736,1770063043564,-164.70227396,0.00013973,2]
[404328737,1770063043575,-170.36367963,0.00013973,2]
[404328738,1770063043587,-500.0,0.00013973,2]
[404328739,1770063043599,-541.62569807,0.00013973,2]
[404328740,1770063043612,-500.0,0.00013973,2]
[404328741,1770063043623,-500.0,0.00013973,2]
[404328742,1770063043635,-569.16951839,0.00013973,2]
[404328743,1770063043646,-500.0,0.00013973,2]
[404328744,1770063043658,-500.0,0.00013973,2]
[404328745,1770063043670,-500.0,0.00013973,2]
[404328746,1770063043682,-500.0,0.00013973,2]
[404328747,1770063043693,-500.0,0.00013973,2]
[404328748,1770063043705,-500.0,0.00013973,2]
[404328749,1770063043717,-168.13382401,0.00013973,2]
[404328750,1770063043728,-500.0,0.00013973,2]
[404328751,1770063043743,-500.0,0.00013973,2]
[404328752,1770063043754,-500.0,0.00013973,2]
[404328753,1770063043766,-500.0,0.00013973,2]
[404328754,1770063043777,-500.0,0.00013973,2]
[404328755,1770063043788,-163.07853281,0.00013973,2]
[404328756,1770063043801,-500.0,0.00013973,2]
[404328757,1770063043812,-500.0,0.00013973,2]
[404328758,1770063043823,-490.75391952,0.00013973,2]
[404328759,1770063043835,-500.0,0.00013973,2]
[404328760,1770063043847,-500.0,0.00013973,2]
[404328761,1770063043858,-500.0,0.00013973,2]
[404328762,1770063043869,-500.0,0.00013973,2]
[404328763,1770063043881,-259.40505883,0.00013973,2]
[404328764,1770063043892,-500.0,0.00013973,2]
[404328765,1770063043904,-500.0,0.00013973,2]
[404328766,1770063043916,-163.90719075,0.00013973,2]
[404328767,1770063043927,-500.0,0.00013973,2]
[404328768,1770063043940,-500.12230816,0.00013973,2]
[404328769,1770063043953,-500.0,0.00013973,2]
[404328770,1770063043964,-500.0,0.00013973,2]
[404328771,1770063043976,-500.0,0.00013973,2]
[404328772,1770063043988,-500.0,0.00013973,2]
[404328773,1770063043999,-460.07091613,0.00013973,2]
[404328774,1770063044011,-500.0,0.00014174,2]
[404328775,1770063044024,-173.35597854,0.00014197,2]
[404328776,1770063044036,-737.02185875,0.00014265,2]
[404328777,1770063044048,-4006.42438865,0.00014296,2]
[404328778,1770063044060,-10573.01734947,0.00014296,2]
[404328779,1770063044071,-18652.05586426,0.00014296,2]
[404328780,1770063044083,-1134.26821676,0.00014306,2]
[404328781,1770063044095,-1000.0,0.00014313,2]
[404328782,1770063044106,-1600.0,0.00014313,2]
[404328783,1770063044117,-151.0,0.00014418,2]
[404328784,1770063044129,-500.0,0.00014421,2]
[404328785,1770063044140,-151.0,0.00014431,2]
[404328786,1770063044151,-151.0,0.00014434,2]
[404328787,1770063044163,-151.0,0.00014435,2]
[404328788,1770063044174,-151.0,0.00014435,2]
[404328789,1770063044185,-151.0,0.00014436,2]
[404328790,1770063044197,-500.0,0.00014448,2]
[404328791,1770063044208,-868.9,0.00014448,2]
[404328792,1770063044219,-773.23,0.00014503,2]
[404328793,1770063044230,-723.77841226,0.00014521,2]
[404328794,1770063044240,-545.34481126,0.00014521,2]
[404328795,1770063044251,-1000.0,0.00014521,2]
[404328796,1770063044262,-543.53042842,0.00014521,2]
[404328797,1770063044273,-1002.28291878,0.00014521,2]
[404328798,1770063044284,-1000.0,0.00014521,2]
[404328799,1770063044295,-1000.0,0.00014521,2]
[404328800,1770063044306,-1000.0,0.00014521,2]
[404328801,1770063044317,-1000.0,0.00014521,2]
[404328802,1770063044328,-503.87544057,0.00014521,2]
[404328803,1770063044339,-1000.0,0.00014521,2]
[404328804,1770063044350,-1000.0,0.00014521,2]
[404328805,1770063044361,-1000.0,0.00014521,2]
[404328806,1770063044371,-1000.0,0.00014521,2]
[404328807,1770063044383,-652.81544497,0.00014521,2]
[404328808,1770063044394,-156.95111861,0.00014521,2]
[404328809,1770063044405,-1000.0,0.00014521,2]
[404328810,1770063044416,-1000.0,0.00014521,2]
[404328811,1770063044427,-1000.0,0.00014521,2]
[404328812,1770063044438,-1000.0,0.00014521,2]
[404328813,1770063044449,-1000.0,0.00014521,2]
[404328815,1770063044459,-181.57502123,0.00014521,2]
[404328817,1770063044470,-911.8365552,0.00014521,2]
[404328818,1770063044481,-1046.2635897,0.00014521,2]
[404328819,1770063044492,-1000.0,0.00014521,2]
[404328820,1770063044503,-1000.0,0.00014521,2]
[404328821,1770063044514,-1001.69360348,0.00014521,2]
[404328822,1770063044525,-343.5303085,0.00014661,2]
[404328823,1770063044536,-561.99539873,0.00014668,2]
[404328824,1770063044547,-500.0,0.00014722,2]
[404328825,1770063044558,-868.9,0.00014722,2]
[404328826,1770063044570,-2816.95173349,0.00014724,2]
[404328827,1770063044580,-773.23,0.00014777,2]
[404328828,1770063044592,-406.56323315,0.00014786,2]
[404328829,1770063044603,-27902.36006674,0.00014796,2]
[404328830,1770063044614,-35759.0,0.00014821,2]
[404328831,1770063044625,-6317.2,0.00014834,2]
[404328832,1770063044637,-296002.9473674,0.00014896,2]
[404328833,1770063044648,-179.5507367,0.000149,2]
[404328834,1770063044659,-3240.0,0.00014912,2]
[404328835,1770063044670,-500.0,0.00014969,2]
[404328836,1770063044680,-711.64,0.00014993,2]
[404328837,1770063044692,-500.0,0.00014996,2]
[404328838,1770063044702,-868.9,0.00014996,2]
[404328839,1770063044714,-250.0,0.00015,2]
[404328840,1770063044724,-5003.0,0.00015,2]
[404328841,1770063044735,-773.23,0.00015051,2]
[404328842,1770063044747,-1500.0,0.00015068,2]
[404328843,1770063044759,-1500.0,0.00015068,2]
[404328844,1770063044770,-1082.73923754,0.00015068,2]
[404328845,1770063044782,-1500.0,0.00015068,2]
[404328846,1770063044794,-1500.0,0.00015068,2]
[404328847,1770063044805,-1118.48848408,0.00015068,2]
[404328848,1770063044817,-1500.0,0.00015068,2]
[404328849,1770063044828,-550.7159852,0.00015068,2]
[404328850,1770063044838,-1500.0,0.00015068,2]
[404328851,1770063044849,-1500.0,0.00015068,2]
[404328852,1770063044859,-1506.79391477,0.00015068,2]
[404328853,1770063044870,-1500.0,0.00015068,2]
[404328854,1770063044881,-1500.0,0.00015068,2]
[404328855,1770063044892,-1500.0,0.00015068,2]
[404328856,1770063044903,-1500.0,0.00015068,2]
[404328857,1770063044914,-1500.0,0.00015068,2]
[404328858,1770063044924,-525.72,0.00015105,2]
[404328859,1770063044937,-500.0,0.0001527,2]
[404328860,1770063044951,-988.5,0.0001527,2]
[404328861,1770063044963,-1152.0,0.0001532,2]
[404328862,1770063044973,-773.23,0.00015325,2]
[404328863,1770063044986,-1252.0,0.00015326,2]
[404328864,1770063044997,-4609.0,0.0001535,2]
[404328865,1770063045008,-341.63207322,0.00015433,2]
[404328866,1770063045021,-748.74,0.00015472,2]
[404328867,1770063045032,-521.7,0.00015472,2]
[404328868,1770063045042,-565.72,0.00015472,2]
[404328869,1770063045053,-1353.09,0.00015472,2]
[404328870,1770063045064,-1235.79,0.00015472,2]
[404328871,1770063045075,-639.93,0.00015472,2]
[404328872,1770063045085,-1083.53,0.00015472,2]
[404328873,1770063045096,-596.97,0.00015472,2]
[404328874,1770063045106,-163.34993731,0.00015473,2]
[404328875,1770063045117,-163.12661798,0.00015473,2]
[404328876,1770063045128,-500.46237197,0.00015473,2]
[404328877,1770063045139,-500.0,0.00015473,2]
[404328878,1770063045150,-500.0,0.00015473,2]
[404328879,1770063045160,-500.0,0.00015473,2]
[404328880,1770063045171,-500.0,0.00015473,2]
[404328881,1770063045181,-574.06272579,0.00015473,2]
[404328882,1770063045191,-500.0,0.00015473,2]
[404328883,1770063045202,-500.0,0.00015473,2]
[404328884,1770063045213,-500.0,0.00015473,2]
[404328885,1770063045224,-163.46067997,0.00015473,2]
[404328890,1770063045536,-500.0,0.00015473,2]
[404328891,1770063045560,-500.0,0.00015473,2]
[404328892,1770063045575,-559.67308476,0.00015473,2]
[404328893,1770063045584,-500.0,0.00015473,2]
[404328894,1770063045594,-200.70028911,0.00015473,2]
[404328895,1770063045603,-500.0,0.00015473,2]
[404328896,1770063045612,-500.0,0.00015473,2]
[404328897,1770063045622,-500.0,0.00015473,2]
[404328898,1770063045631,-500.0,0.00015473,2]
[404328899,1770063045641,-500.0,0.00015473,2]
[404328900,1770063045651,-500.0,0.00015473,2]
[404328901,1770063045660,-500.0,0.00015473,2]
[404328902,1770063045669,-500.0,0.00015473,2]
[404328903,1770063045679,-336.43827265,0.00015473,2]
[404328904,1770063045688,-500.0,0.00015473,2]
[404328905,1770063045698,-500.0,0.00015473,2]
[404328906,1770063045707,-500.0,0.00015473,2]
[404328907,1770063045716,-500.0,0.00015473,2]
[404328908,1770063045726,-500.0,0.00015473,2]
[404328909,1770063045735,-500.0,0.00015473,2]
[404328910,1770063045744,-500.0,0.00015473,2]
[404328911,1770063045753,-522.30858015,0.00015473,2]
[404328912,1770063045763,-500.0,0.00015473,2]
[404328913,1770063045772,-500.0,0.00015473,2]
[404328914,1770063045781,-161.45537985,0.00015473,2]
[404328915,1770063045790,-500.62768041,0.00015473,2]
[404328916,1770063045800,-500.6120606,0.00015473,2]
[404328917,1770063045809,-500.0,0.00015473,2]
[404328918,1770063045821,-500.0,0.00015473,2]
[404328919,1770063045831,-512.94754167,0.00015473,2]
[404328920,1770063045840,-460.30125151,0.00015473,2]
[404328921,1770063045849,-340.09137446,0.00015473,2]
[404328922,1770063045859,-500.63586771,0.00015473,2]
[404328923,1770063045868,-160.54295648,0.00015473,2]
[404328924,1770063045877,-464.35211832,0.00015473,2]
[404328925,1770063045887,-151.07783782,0.00015473,2]
[404328926,1770063045896,-500.40906893,0.00015473,2]
[404328927,1770063045905,-500.0,0.00015473,2]
[404328928,1770063045915,-500.0,0.00015473,2]
[404328929,1770063045924,-160.61738464,0.00015473,2]
[404328930,1770063045934,-500.41005015,0.00015473,2]
[404328931,1770063045947,-500.0,0.00015473,2]
[404328932,1770063045956,-500.0,0.00015473,2]
[404328933,1770063045966,-550.09529227,0.00015473,2]
[404328934,1770063045974,-500.0,0.00015473,2]
[404328935,1770063045985,-486.29318482,0.00015473,2]
[404328936,1770063045995,-500.0,0.00015473,2]
[404328937,1770063046004,-168.03217975,0.00015473,2]
[404328938,1770063046013,-500.0,0.00015473,2]
[404328939,1770063046025,-500.0,0.00015473,2]
[404328940,1770063046034,-500.0,0.00015473,2]
[404328941,1770063046044,-500.0,0.00015473,2]
[404328942,1770063046053,-500.0,0.00015473,2]
[404328943,1770063046062,-500.0,0.00015473,2]
[404328944,1770063046075,-500.0,0.00015473,2]
[404328945,1770063046084,-500.0,0.00015473,2]
[404328946,1770063046094,-500.0,0.00015473,2]
[404328947,1770063046103,-500.0,0.00015473,2]
[404328948,1770063046112,-500.0,0.00015473,2]
[404328949,1770063046121,-500.0,0.00015473,2]
[404328950,1770063046132,-185.46503654,0.00015473,2]
[404328951,1770063046141,-500.0,0.00015473,2]
[404328952,1770063046150,-500.0,0.00015473,2]
[404328954,1770063046159,-593.37800921,0.00015473,2]
[404328955,1770063046168,-500.0,0.00015473,2]
[404328956,1770063046177,-12586.0,0.00015474,2]
[404328957,1770063046187,-159.60859955,0.00015494,2]
[404328958,1770063046196,-500.0,0.00015517,2]
[404328959,1770063046205,-1134.26821676,0.00015531,2]
[404328962,1770063046215,-250.20103246,0.00015544,2]
[404328965,1770063046224,-6317.2,0.00015576,2]
[404328967,1770063046233,-1000.0,0.00015614,2]
[404328969,1770063046243,-1600.0,0.00015614,2]
[404328971,1770063046252,-1666.54524169,0.00015616,2]
[404328973,1770063046261,-2000.0,0.00015616,2]
[404328974,1770063046270,-2000.0,0.00015616,2]
[404328975,1770063046279,-1517.4616613,0.00015616,2]
[404328976,1770063046287,-2000.0,0.00015616,2]
[404328977,1770063046296,-2000.0,0.00015616,2]
[404328978,1770063046305,-1006.04407484,0.00015616,2]
[404328979,1770063046315,-2000.0,0.00015616,2]
[404328980,1770063046324,-876.09004687,0.00015616,2]
[404328981,1770063046333,-2000.0,0.00015616,2]
[404328982,1770063046343,-2000.0,0.00015616,2]
[404328983,1770063046352,-2000.0,0.00015616,2]
[404328984,1770063046362,-322.6107,0.00015673,2]
[404328985,1770063046371,-250.0,0.00015673,2]
[404328986,1770063046380,-209.40437684,0.00015673,2]
[404328987,1770063046389,-250.0,0.00015673,2]
[404328988,1770063046399,-1428.38747117,0.00015673,2]
[404328989,1770063046408,-209.40437684,0.00015673,2]
[404328990,1770063046418,-250.0,0.00015673,2]
[404328991,1770063046427,-500.0,0.00015673,2]
[404328992,1770063046437,-250.0,0.00015673,2]
[404328993,1770063046447,-500.0,0.00015673,2]
[404328994,1770063046455,-250.0,0.00015673,2]
[404328995,1770063046465,-500.0,0.00015673,2]
[404328996,1770063046474,-250.0,0.00015673,2]
[404328997,1770063046483,-500.0,0.00015673,2]
[404328998,1770063046492,-500.0,0.00015673,2]
[404328999,1770063046502,-174.61919141,0.00015673,2]
[404329000,1770063046511,-500.0,0.00015673,2]
[404329001,1770063046521,-500.0,0.00015673,2]
[404329002,1770063046530,-500.0,0.00015673,2]
[404329003,1770063046540,-500.0,0.00015673,2]
[404329004,1770063046550,-500.0,0.00015673,2]
[404329005,1770063046559,-500.0,0.00015673,2]
[404329006,1770063046570,-859.80605061,0.00015673,2]
[404329007,1770063046579,-151.0,0.00015673,2]
[404329008,1770063046588,-721.12765535,0.00015673,2]
[404329009,1770063046598,-578.20924308,0.00015673,2]
[404329010,1770063046607,-250.0,0.00015673,2]
[404329011,1770063046616,-250.0,0.00015673,2]
[404329012,1770063046626,-250.0,0.00015673,2]
[404329013,1770063046636,-209.40437684,0.00015673,2]
[404329014,1770063046645,-250.0,0.00015673,2]
[404329015,1770063046654,-250.0,0.00015673,2]
[404329016,1770063046664,-250.0,0.00015673,2]
[404329017,1770063046673,-250.0,0.00015673,2]
[404329018,1770063046682,-250.0,0.00015673,2]
[404329019,1770063046691,-250.0,0.00015673,2]
[404329020,1770063046701,-250.0,0.00015673,2]
[404329021,1770063046710,-250.0,0.00015673,2]
[404329022,1770063046719,-217.15233878,0.00015728,2]
[404329023,1770063046728,-2816.95173349,0.00015783,2]
[404329024,1770063046736,-225.18697532,0.00015783,2]
[404329025,1770063046746,-350.4564064,0.00015807,2]
[404329026,1770063046755,-1000.0,0.00015814,2]
[404329027,1770063046763,-233.51889341,0.00015838,2]
[404329028,1770063046772,-242.15909246,0.00015893,2]
[404329029,1770063046781,-360.21,0.00015905,2]
[404329030,1770063046790,-251.11897888,0.00015948,2]
[404329031,1770063046798,-5000.0,0.0001596,2]
[404329032,1770063046807,-200.896366,0.00016,2]
[404329033,1770063046818,-260.4103811,0.00016003,2]
[404329034,1770063046827,-500.0,0.00016021,2]
[404329035,1770063046836,-494.98211284,0.00016021,2]
[404329036,1770063046845,-1000.0,0.00016021,2]
[404329037,1770063046854,-1000.0,0.00016021,2]
[404329038,1770063046863,-1000.0,0.00016021,2]
[404329039,1770063046873,-964.09949899,0.00016021,2]
[404329040,1770063046883,-1000.0,0.00016021,2]
[404329041,1770063046892,-335.25607575,0.00016021,2]
[404329042,1770063046901,-1000.0,0.00016021,2]
[404329043,1770063046910,-500.0,0.00016021,2]
[404329044,1770063046919,-504.20951303,0.00016021,2]
[404329045,1770063046928,-1000.0,0.00016021,2]
[404329046,1770063046940,-1000.0,0.00016021,2]
[404329047,1770063046949,-1000.0,0.00016021,2]
[404329048,1770063046959,-502.15998223,0.00016021,2]
[404329049,1770063046969,-871.81162767,0.00016021,2]
[404329050,1770063046979,-1000.0,0.00016021,2]
[404329051,1770063046988,-1000.0,0.00016021,2]
[404329052,1770063046997,-1000.0,0.00016021,2]
[404329053,1770063047007,-1000.0,0.00016021,2]
[404329054,1770063047017,-500.0,0.00016021,2]
[404329055,1770063047026,-960.71724918,0.00016021,2]
[404329056,1770063047036,-500.0,0.00016021,2]
[404329057,1770063047044,-500.0,0.00016021,2]
[404329058,1770063047054,-1000.0,0.00016021,2]
[404329059,1770063047063,-486.90150068,0.00016021,2]
[404329060,1770063047074,-1000.0,0.00016021,2]
[404329061,1770063047083,-1000.0,0.00016021,2]
[404329062,1770063047093,-1000.0,0.00016021,2]
[404329063,1770063047102,-1000.0,0.00016021,2]
[404329064,1770063047111,-1000.0,0.00016021,2]
[404329065,1770063047120,-1000.0,0.00016021,2]
[404329066,1770063047130,-501.28378078,0.00016021,2]
[404329067,1770063047139,-1000.0,0.00016021,2]
[404329068,1770063047149,-1128.44291984,0.00016021,2]
[404329069,1770063047158,-1000.0,0.00016021,2]
[404329070,1770063047167,-1000.0,0.00016021,2]
[404329071,1770063047176,-1000.0,0.00016021,2]
[404329072,1770063047185,-1000.0,0.00016021,2]
[404329073,1770063047195,-1000.0,0.00016021,2]
[404329074,1770063047204,-1000.0,0.00016021,2]
[404329075,1770063047214,-1000.0,0.00016021,2]
[404329076,1770063047224,-500.0,0.00016021,2]
[404329077,1770063047234,-500.0,0.00016027,2]
[404329078,1770063047243,-270.0455652,0.00016058,2]
[404329079,1770063047253,-500.0,0.00016065,2]
[404329080,1770063047262,-737.02185875,0.00016083,2]
[404329081,1770063047272,-280.03725112,0.00016113,2]
[404329082,1770063047281,-9999.99,0.00016116,2]
[404329083,1770063047291,-2500.0,0.00016164,2]
[404329084,1770063047300,-1312.26829567,0.00016164,2]
[404329085,1770063047309,-327.96194417,0.00016164,2]
[404329086,1770063047318,-809.50611672,0.00016164,2]
[404329087,1770063047328,-1018.20605405,0.00016164,2]
[404329088,1770063047337,-2500.0,0.00016164,2]
[404329089,1770063047347,-2500.0,0.00016164,2]
[404329090,1770063047357,-473.78998774,0.00016164,2]
[404329091,1770063047366,-290.39862941,0.00016168,2]
[404329092,1770063047375,-217.15233878,0.00016221,2]
[404329093,1770063047385,-1481.23780761,0.00016221,2]
[404329094,1770063047394,-181.08010149,0.00016221,2]
[404329095,1770063047404,-151.0,0.00016221,2]
[404329096,1770063047413,-276.99112212,0.00016221,2]
[404329097,1770063047422,-301.1433787,0.00016223,2]
[404329098,1770063047432,-159.60859955,0.00016268,2]
[404329099,1770063047441,-748.74,0.00016284,2]
[404329100,1770063047451,-748.74,0.00016284,2]
[404329101,1770063047460,-748.74,0.00016284,2]
[404329102,1770063047469,-748.74,0.00016284,2]
[404329103,1770063047479,-748.75883379,0.00016284,2]
[404329104,1770063047488,-565.72,0.00016284,2]
[404329105,1770063047498,-565.72,0.00016284,2]
[404329106,1770063047507,-565.72,0.00016284,2]
[404329107,1770063047517,-565.72,0.00016284,2]
[404329108,1770063047526,-565.85807212,0.00016284,2]
[404329109,1770063047537,-1353.09,0.00016284,2]
[404329110,1770063047547,-1353.09,0.00016284,2]
[404329111,1770063047556,-1353.09,0.00016284,2]
[404329112,1770063047566,-1353.09,0.00016284,2]
[404329113,1770063047575,-1353.32686126,0.00016284,2]
[404329114,1770063047586,-1235.79,0.00016284,2]
[404329115,1770063047595,-1235.79,0.00016284,2]
[404329116,1770063047604,-1235.79,0.00016284,2]
[404329117,1770063047614,-1235.79,0.00016284,2]
[404329118,1770063047623,-1235.97856515,0.00016284,2]
[404329119,1770063047632,-639.93,0.00016284,2]
[404329120,1770063047642,-639.93,0.00016284,2]
[404329121,1770063047652,-639.93,0.00016284,2]
[404329122,1770063047661,-639.93,0.00016284,2]
[404329123,1770063047670,-640.02279054,0.00016284,2]
[404329124,1770063047680,-1083.53,0.00016284,2]
[404329125,1770063047689,-1083.53,0.00016284,2]
[404329126,1770063047699,-1083.53,0.00016284,2]
[404329127,1770063047709,-1083.53,0.00016284,2]
[404329128,1770063047718,-1083.73994886,0.00016284,2]
[404329129,1770063047728,-596.97,0.00016284,2]
[404329130,1770063047738,-596.97,0.00016284,2]
[404329131,1770063047748,-596.97,0.00016284,2]
[404329132,1770063047758,-596.97,0.00016284,2]
[404329133,1770063047767,-597.07967228,0.00016284,2]
[404329134,1770063047777,-6317.2,0.00016317,2]
[404329135,1770063047786,-500.0,0.00016329,2]
[404329136,1770063047796,-166.66,0.00016333,2]
[404329137,1770063047806,-500.0,0.00016384,2]
[404329138,1770063047815,-521.7,0.00016437,2]
[404329139,1770063047825,-521.7,0.00016437,2]
[404329140,1770063047834,-521.7,0.00016437,2]
[404329141,1770063047844,-521.7,0.00016437,2]
[404329142,1770063047853,-521.88046437,0.00016437,2]
[404329143,1770063047863,-1894.56667805,0.00016438,2]